fUST/lending_fUST_20250827
["ID","MTS","AMOUNT","RATE_DAILY","PERIOD"]
[381502065,1756239046689,-161.0922331,0.0003839,30]
[381502066,1756239046699,-161.0922331,0.0003839,30]
[381502067,1756239046709,-161.0922331,0.0003839,30]
[381502068,1756239046718,-288.5871893,0.0003839,30]
[381502069,1756239046728,-153.0,0.0003839,30]
[381502070,1756239046737,-153.0,0.0003839,30]
[381502071,1756239046746,-153.0,0.0003839,30]
[381502072,1756239046756,-153.0,0.0003839,30]
[381502073,1756239046765,-153.0,0.0003839,30]
[381502074,1756239046774,-153.0,0.0003839,30]
[381502075,1756239046783,-153.0,0.0003839,30]
[381502076,1756239046793,-153.0,0.0003839,30]
[381502077,1756239046802,-153.0,0.0003839,30]
[381502078,1756239046811,-206.2496563,0.0003839,30]
[381502079,1756239046825,-153.0,0.0003839,30]
[381502080,1756239046844,-153.0,0.0003839,30]
[381502081,1756239046866,-153.0,0.0003839,30]
[381502082,1756239046886,-153.0,0.0003839,30]
[381502083,1756239046905,-176.8367364,0.0003839,30]
[381502084,1756239046927,-151.0,0.0003839,30]
[381502085,1756239046948,-151.0,0.0003839,30]
[381502087,1756239046968,-151.0,0.0003839,15]
[381502089,1756239046989,-151.0,0.0003839,15]
[381502099,1756239047010,-151.0,0.0003839,30]
[381502103,1756239047224,-151.0,0.0003839,30]
[381502105,1756239047233,-151.0,0.0003839,30]
[381502107,1756239047243,-151.0,0.0003839,30]
[381502109,1756239047252,-151.0,0.0003839,30]
[381502111,1756239047262,-159.007068,0.0003839,30]
[381502113,1756239047271,-151.0,0.0003839,30]
[381502115,1756239047281,-151.0,0.0003839,30]
[381502117,1756239047290,-151.0,0.0003839,30]
[381502119,1756239047300,-151.0,0.0003839,30]
[381502121,1756239047309,-151.0,0.0003839,30]
[381502123,1756239047319,-39303.17,0.000384,14]
[381502125,1756239047332,-187.09935736,0.0003842,14]
[381502127,1756239047342,-152.786777,0.00038458,7]
[381502129,1756239047351,-3000.0,0.000386,36]
[381502131,1756239047361,-151.0,0.000386,13]
[381502133,1756239047370,-184.668224,0.000386,30]
[381502135,1756239047380,-151.0,0.000386,30]
[381502136,1756239047390,-184.668224,0.000386,30]
[381502138,1756239047400,-184.668224,0.000386,30]
[381502140,1756239047409,-184.668224,0.000386,30]
[381502142,1756239047419,-151.0,0.000386,30]
[381502144,1756239047428,-151.0,0.000386,30]
[381502146,1756239047437,-151.0,0.000386,30]
[381502148,1756239047447,-151.0,0.000386,30]
[381502150,1756239047456,-151.0,0.000386,30]
[381502152,1756239047465,-151.0,0.000386,30]
[381502154,1756239047475,-151.0,0.000386,30]
[381502155,1756239047485,-151.0,0.000386,30]
[381502157,1756239047494,-151.0,0.000386,30]
[381502159,1756239047504,-151.0,0.000386,30]
[381502161,1756239047514,-151.0,0.000386,30]
[381502163,1756239047523,-151.0,0.000386,30]
[381502165,1756239047532,-151.0,0.000386,30]
[381502167,1756239047542,-151.0,0.000386,30]
[381502169,1756239047551,-151.0,0.000386,30]
[381502171,1756239047561,-151.0,0.000386,30]
[381502173,1756239047571,-219.713195,0.000386,30]
[381502175,1756239047581,-151.0,0.000386,30]
[381502177,1756239047590,-151.0,0.000386,30]
[381502179,1756239047600,-151.0,0.000386,30]
[381502181,1756239047609,-238.329448,0.000386,30]
[381502183,1756239047619,-151.0,0.000386,30]
[381502185,1756239047628,-5039.69206943,0.000386,3]
[381502187,1756239047638,-379.78823236,0.000386,3]
[381502189,1756239047647,-3000.0,0.0003861,36]
[381502191,1756239047656,-151.0,0.0003861,30]
[381502193,1756239047666,-151.0,0.0003861,30]
[381502195,1756239047675,-151.0,0.0003861,30]
[381502197,1756239047684,-151.0,0.0003861,30]
[381502199,1756239047694,-151.0,0.0003861,30]
[381502201,1756239047703,-151.0,0.0003861,30]
[381502203,1756239047712,-180.84,0.0003861,30]
[381502204,1756239047722,-151.0,0.0003861,30]
[381502206,1756239047731,-151.0,0.0003861,30]
[381502208,1756239047740,-3000.0,0.0003862,36]
[381502210,1756239047750,-3000.0,0.0003863,36]
[381502212,1756239047761,-3014.250325,0.0003864,36]
[381502214,1756239047770,-693.04035376,0.00038892,32]
[381502216,1756239047780,-500.0,0.00038903,7]
[381502218,1756239047789,-533.21,0.00038904,120]
[381502220,1756239047799,-2313.48,0.00039,7]
[381502222,1756239047810,-217.18350301,0.00039,30]
[381502224,1756239047820,-3104.05,0.00039,7]
[381502226,1756239047829,-160.0,0.00039,30]
[381502228,1756239047840,-160.0,0.00039,30]
[381502230,1756239047851,-152.786777,0.00039254,60]
[381502232,1756239047860,-152.786777,0.00039315,5]
[381502234,1756239047869,-444.85113959,0.00039315,5]
[381502236,1756239047879,-152.786777,0.00039317,2]
[381502238,1756239047889,-800.0,0.00039408,7]
[381502240,1756239047899,-152.786777,0.00039437,20]
[381502242,1756239047908,-533.21,0.00039452,120]
[381502244,1756239047917,-263.005784,0.00039452,120]
[381502246,1756239047927,-151.0,0.000395,13]
[381502248,1756239047936,-150.0,0.00039511,2]
[381502250,1756239047945,-389.432907,0.00039654,2]
[381502252,1756239047955,-208.0,0.0003969,30]
[381502253,1756239047965,-150.0,0.0003969,2]
[381502255,1756239047974,-151.0,0.000397,10]
[381502257,1756239047983,-233.51889341,0.00039703,2]
[381502259,1756239047993,-150.0,0.00039709,2]
[381502261,1756239048008,-150.0,0.00039709,2]
[381502263,1756239048018,-500.0,0.00039725,7]
[381502265,1756239048030,-151.0,0.000398,20]
[381502267,1756239048042,-240.52,0.0003982,7]
[381502269,1756239048052,-200.32076711,0.00039863,30]
[381502271,1756239048062,-261.21,0.00039868,2]
[381502273,1756239048071,-4434.0,0.000399,14]
[381502275,1756239048081,-900.0,0.00039926,7]
[381502277,1756239048090,-756.0,0.0004,120]
[381502279,1756239048100,-533.21,0.0004,120]
[381502281,1756239048109,-39303.17,0.0004,14]
[381502283,1756239048119,-500.0,0.00040013,30]
[381502284,1756239048128,-500.0,0.0004009,30]
[381502286,1756239048138,-500.0,0.0004009,30]
[381502288,1756239048149,-158.0,0.000401,120]
[381502290,1756239048158,-4000.0,0.00040173,8]
[381502292,1756239048168,-152.786777,0.00040188,7]
[381502294,1756239048178,-5039.69206943,0.0004019,3]
[381502296,1756239048187,-379.78823236,0.0004019,3]
[381502298,1756239048197,-800.0,0.00040219,7]
[381502300,1756239048209,-900.0,0.00040224,30]
[381502302,1756239048219,-600.0,0.0004024,2]
[381502304,1756239048229,-900.0,0.00040258,30]
[381502306,1756239048240,-5039.69206943,0.00040264,3]
[381502308,1756239048249,-379.78823236,0.00040264,3]
[381502310,1756239048259,-151.0,0.00040264,30]
[381502312,1756239048269,-151.0,0.00040264,30]
[381502314,1756239048282,-151.0,0.00040264,30]
[381502316,1756239048292,-151.0,0.00040264,30]
[381502318,1756239048301,-151.0,0.00040264,30]
[381502320,1756239048311,-153.157062,0.00040264,30]
[381502322,1756239048323,-151.0,0.00040264,30]
[381502324,1756239048335,-151.924413,0.00040264,14]
[381502326,1756239048347,-151.0,0.00040264,30]
[381502328,1756239048357,-151.0,0.00040264,30]
[381502330,1756239048367,-151.0,0.00040264,30]
[381502332,1756239048376,-151.0,0.00040264,30]
[381502334,1756239048386,-151.0,0.00040264,30]
[381502336,1756239048396,-151.0,0.00040264,30]
[381502338,1756239048406,-151.0,0.00040264,30]
[381502340,1756239048416,-151.0,0.00040264,30]
[381502342,1756239048426,-151.0,0.00040264,30]
[381502344,1756239048436,-151.0,0.00040264,30]
[381502346,1756239048446,-200.68619,0.00040264,30]
[381502348,1756239048456,-151.0,0.00040264,30]
[381502350,1756239048465,-151.0,0.00040264,30]
[381502352,1756239048475,-151.0,0.00040264,30]
[381502354,1756239048485,-151.0,0.00040264,30]
[381502356,1756239048494,-151.0,0.00040264,30]
[381502358,1756239048504,-151.0,0.00040264,30]
[381502359,1756239048514,-12500.0,0.00040273,10]
[381502361,1756239048524,-8629.62995869,0.00040274,10]
[381502363,1756239048534,-1000.0,0.000403,2]
[381502365,1756239048543,-800.0,0.00040359,7]
[381502367,1756239048553,-200.0,0.00040362,7]
[381502369,1756239048563,-151.0,0.000404,30]
[381502371,1756239048573,-151.0,0.000404,30]
[381502373,1756239048583,-156.93071,0.000404,30]
[381502375,1756239048592,-151.0,0.000404,30]
[381502377,1756239048601,-151.0,0.000404,30]
[381502379,1756239048611,-151.0,0.000404,30]
[381502381,1756239048622,-151.594813,0.000404,30]
[381502383,1756239048632,-151.0,0.000404,30]
[381502385,1756239048643,-151.0,0.000404,30]
[381502387,1756239048653,-151.0,0.000404,30]
[381502389,1756239048664,-151.0,0.000404,30]
[381502391,1756239048674,-151.0,0.000404,30]
[381502393,1756239048684,-151.0,0.000404,30]
[381502395,1756239048695,-151.0,0.000404,30]
[381502397,1756239048705,-219.675069,0.000404,30]
[381502399,1756239048715,-151.0,0.000404,30]
[381502400,1756239048725,-295.722506,0.000404,30]
[381502402,1756239048736,-295.722506,0.000404,30]
[381502404,1756239048747,-295.722506,0.000404,30]
[381502406,1756239048757,-295.722506,0.000404,30]
[381502408,1756239048767,-500.0,0.00040411,30]
[381502410,1756239048778,-208.0,0.0004043,30]
[381502412,1756239048788,-500.0,0.00040453,30]
[381502414,1756239048798,-7116.2652721,0.00040485,2]
[381502416,1756239048808,-189.69645233,0.00040517,7]
[381502418,1756239048819,-15145.9626615,0.00040529,2]
[381502420,1756239048829,-500.0,0.00040547,7]
[381502422,1756239048839,-533.21,0.00040547,120]
[381502424,1756239048849,-173.84119207,0.00040584,8]
[381502426,1756239048860,-673.69999716,0.00040584,2]
[381502428,1756239048870,-5039.69206943,0.0004059,3]
[381502430,1756239048880,-379.78823236,0.0004059,3]
[381502432,1756239048895,-2313.48,0.000406,7]
[381502434,1756239048905,-3104.05,0.000406,7]
[381502436,1756239048916,-151.0,0.000406,30]
[381502438,1756239048925,-151.0,0.000406,30]
[381502440,1756239048936,-151.0,0.000406,30]
[381502442,1756239048946,-693.04035376,0.00040619,36]
[381502444,1756239048957,-800.0,0.00040626,7]
[381502446,1756239048967,-1856.10952612,0.00040642,28]
[381502448,1756239048977,-600.0,0.00040659,2]
[381502450,1756239048986,-500.0,0.00040673,5]
[381502452,1756239048997,-151.819621,0.00040674,30]
[381502453,1756239049008,-151.0,0.00040674,30]
[381502455,1756239049018,-151.0,0.00040674,30]
[381502457,1756239049028,-151.0,0.00040674,30]
[381502459,1756239049038,-164.828353,0.00040674,30]
[381502461,1756239049048,-151.0,0.00040674,30]
[381502463,1756239049058,-10079.3841389,0.00040674,3]
[381502465,1756239049069,-759.57646472,0.00040674,3]
[381502467,1756239049081,-253.170716,0.00040683,30]
[381502469,1756239049091,-151.0,0.00040683,30]
[381502471,1756239049101,-151.0,0.00040683,15]
[381502473,1756239049111,-151.0,0.00040683,15]
[381502475,1756239049120,-151.0,0.00040683,30]
[381502477,1756239049131,-151.0,0.00040683,30]
[381502479,1756239049142,-151.0,0.00040683,30]
[381502481,1756239049152,-151.0,0.00040683,30]
[381502483,1756239049162,-151.0,0.00040683,30]
[381502485,1756239049172,-151.0,0.00040683,30]
[381502487,1756239049182,-151.0,0.00040683,30]
[381502489,1756239049191,-152.011263,0.00040683,30]
[381502491,1756239049202,-3239.83540828,0.00040684,61]
[381502493,1756239049212,-86945.77295046,0.00040684,2]
[381502495,1756239049222,-430592.3352083,0.00040684,2]
[381502497,1756239049232,-151.0,0.00040684,30]
[381502499,1756239049243,-151.0,0.00040684,14]
[381502501,1756239049252,-153.500027,0.00040684,14]
[381502503,1756239049262,-151.0,0.00040684,30]
[381502505,1756239049272,-151.0,0.00040684,30]
[381502506,1756239049282,-151.0,0.00040684,30]
[381502509,1756239049292,-151.0,0.00040684,30]
[381502510,1756239049302,-151.0,0.00040684,30]
[381502513,1756239049313,-151.0,0.00040684,2]
[381502514,1756239049323,-151.0,0.00040684,30]
[381502516,1756239049333,-151.611321,0.00040684,30]
[381502518,1756239049343,-151.0,0.00040684,30]
[381502520,1756239049354,-151.0,0.00040684,30]
[381502522,1756239049364,-250.599124,0.00040684,30]
[381502524,1756239049374,-151.0,0.00040684,30]
[381502526,1756239049385,-151.0,0.00040684,30]
[381502528,1756239049396,-151.0,0.00040684,30]
[381502530,1756239049406,-151.0,0.00040684,30]
[381502532,1756239049416,-295.722506,0.00040684,30]
[381502534,1756239049426,-295.722506,0.00040684,30]
[381502536,1756239049437,-295.722506,0.00040684,30]
[381502539,1756239049447,-295.722506,0.00040684,30]
[381502540,1756239049456,-151.0,0.00040684,15]
[381502542,1756239049466,-258.439252,0.00040684,15]
[381502544,1756239049476,-151.0,0.00040684,30]
[381502546,1756239049486,-152.077401,0.00040684,30]
[381502548,1756239049496,-151.0,0.00040684,30]
[381502550,1756239049506,-151.0,0.00040684,30]
[381502552,1756239049515,-151.0,0.00040684,30]
[381502554,1756239049525,-151.0,0.00040684,30]
[381502556,1756239049535,-151.0,0.00040684,30]
[381502558,1756239049545,-151.0,0.00040684,30]
[381502560,1756239049554,-151.0,0.00040684,30]
[381502562,1756239049564,-151.0,0.00040684,30]
[381502564,1756239049574,-248.439467,0.00040684,30]
[381502566,1756239049584,-151.0,0.00040684,30]
[381502568,1756239049593,-151.0,0.00040684,30]
[381502570,1756239049603,-151.0,0.00040684,30]
[381502572,1756239049613,-151.0,0.00040684,30]
[381502574,1756239049623,-151.0,0.00040684,30]
[381502582,1756239049695,-151.0,0.00040684,30]
[381502583,1756239049705,-151.0,0.00040684,30]
[381502584,1756239049715,-151.0,0.00040684,30]
[381502585,1756239049724,-151.0,0.00040684,30]
[381502586,1756239049734,-151.0,0.00040684,30]
[381502587,1756239049744,-228.2694,0.00040684,30]
[381502588,1756239049754,-151.0,0.00040684,30]
[381502589,1756239049764,-151.0,0.00040684,30]
[381502590,1756239049773,-151.0,0.00040684,30]
[381502591,1756239049783,-151.0,0.00040684,30]
[381502592,1756239049793,-151.0,0.00040684,30]
[381502593,1756239049803,-151.0,0.00040684,30]
[381502594,1756239049813,-151.0,0.00040684,30]
[381502595,1756239049822,-151.0,0.00040684,30]
[381502596,1756239049832,-151.0,0.00040684,30]
[381502597,1756239049841,-151.0,0.00040684,30]
[381502598,1756239049851,-276.664088,0.00040684,30]
[381502599,1756239049861,-196.62182,0.00040684,30]
[381502600,1756239049870,-151.0,0.00040684,30]
[381502602,1756239049880,-151.0,0.00040684,30]
[381502604,1756239049889,-182.328358,0.00040684,30]
[381502606,1756239049899,-151.0,0.00040684,30]
[381502608,1756239049908,-151.0,0.00040684,30]
[381502610,1756239049918,-266.330493,0.00040684,30]
[381502612,1756239049927,-151.0,0.00040684,30]
[381502614,1756239049936,-151.0,0.00040684,30]
[381502616,1756239049946,-151.0,0.00040684,30]
[381502618,1756239049955,-151.0,0.00040684,30]
[381502620,1756239049965,-151.0,0.00040684,30]
[381502622,1756239049974,-151.0,0.00040684,30]
[381502624,1756239049983,-151.0,0.00040684,30]
[381502626,1756239049992,-151.0,0.00040684,30]
[381502628,1756239050004,-151.0,0.00040684,30]
[381502630,1756239050013,-152.475477,0.00040684,30]
[381502632,1756239050022,-151.0,0.00040684,30]
[381502634,1756239050032,-151.0,0.00040684,30]
[381502636,1756239050042,-151.0,0.00040684,30]
[381502638,1756239050051,-151.0,0.00040684,30]
[381502640,1756239050060,-151.0,0.00040684,30]
[381502642,1756239050069,-151.0,0.00040684,30]
[381502644,1756239050080,-151.0,0.00040684,30]
[381502646,1756239050090,-151.0,0.00040684,30]
[381502648,1756239050099,-243.942292,0.00040684,30]
[381502650,1756239050108,-151.0,0.00040684,30]
[381502652,1756239050117,-151.0,0.00040684,30]
[381502654,1756239050127,-151.0,0.00040684,30]
[381502656,1756239050136,-151.0,0.00040684,30]
[381502658,1756239050145,-151.0,0.00040684,30]
[381502660,1756239050155,-151.0,0.00040684,30]
[381502662,1756239050164,-151.0,0.00040684,30]
[381502664,1756239050173,-184.668224,0.00040684,30]
[381502666,1756239050182,-184.668224,0.00040684,30]
[381502668,1756239050192,-151.0,0.00040684,30]
[381502670,1756239050201,-151.0,0.00040684,30]
[381502672,1756239050210,-184.668224,0.00040684,30]
[381502674,1756239050219,-184.668224,0.00040684,30]
[381502676,1756239050228,-184.668224,0.00040684,30]
[381502678,1756239050237,-184.668224,0.00040684,30]
[381502680,1756239050247,-184.668224,0.00040684,30]
[381502682,1756239050256,-151.0,0.00040684,30]
[381502684,1756239050265,-184.668224,0.00040684,30]
[381502686,1756239050275,-151.0,0.00040684,30]
[381502688,1756239050284,-151.0,0.00040684,30]
[381502690,1756239050293,-151.0,0.00040684,30]
[381502692,1756239050303,-151.0,0.00040684,30]
[381502694,1756239050312,-151.0,0.00040684,30]
[381502696,1756239050322,-151.0,0.00040684,30]
[381502698,1756239050331,-151.0,0.00040684,30]
[381502700,1756239050340,-296.495863,0.00040684,30]
[381502702,1756239050349,-151.0,0.00040684,30]
[381502704,1756239050359,-151.0,0.00040684,30]
[381502706,1756239050369,-287.861439,0.00040684,30]
[381502708,1756239050378,-151.0,0.00040684,30]
[381502710,1756239050388,-151.0,0.00040684,30]
[381502712,1756239050398,-151.0,0.00040684,30]
[381502713,1756239050407,-151.0,0.00040684,30]
[381502715,1756239050418,-151.0,0.00040684,30]
[381502717,1756239050429,-151.0,0.00040684,30]
[381502719,1756239050438,-151.0,0.00040684,30]
[381502721,1756239050447,-151.0,0.00040684,30]
[381502723,1756239050456,-151.0,0.00040684,30]
[381502725,1756239050466,-206.253544,0.00040684,30]
[381502728,1756239050475,-151.0,0.00040684,30]
[381502729,1756239050485,-151.0,0.00040684,30]
[381502731,1756239050495,-153.598615,0.00040684,30]
[381502734,1756239050505,-151.0,0.00040684,30]
[381502736,1756239050516,-151.0,0.00040684,30]
[381502738,1756239050527,-211.944196,0.00040684,30]
[381502740,1756239050538,-151.0,0.00040684,30]
[381502742,1756239050548,-151.0,0.00040684,30]
[381502744,1756239050558,-151.0,0.00040684,30]
[381502746,1756239050568,-151.0,0.00040684,30]
[381502747,1756239050579,-151.0,0.00040684,30]
[381502750,1756239050590,-151.0,0.00040684,30]
[381502751,1756239050600,-151.0,0.00040684,30]
[381502753,1756239050609,-151.0,0.00040684,30]
[381502755,1756239050618,-151.0,0.00040684,30]
[381502757,1756239050627,-151.0,0.00040684,30]
[381502759,1756239050636,-151.0,0.00040684,30]
[381502761,1756239050647,-150.0,0.00040716,2]
[381502763,1756239050656,-500.0,0.00040727,30]
[381502765,1756239050665,-150.0,0.00040756,2]
[381502767,1756239050675,-50523.10830292,0.000408,120]
[381502833,1756239051300,-517.57280667,0.00032,2]
[381502836,1756239051313,-258.67234176,0.00032,2]
[381502886,1756239051956,-9044.08485157,0.00032,2]
[381502888,1756239051967,-9820.33,0.000338,14]
[381502890,1756239051977,-9820.33,0.000351,14]
[381502892,1756239051987,-7910.8782954,0.000367,14]
[381502896,1756239052047,891.60473934,0.0002626,2]
[381502899,1756239055785,5000.0,0.0002626,2]
[381502900,1756239071202,5000.0,0.0002626,2]
[381502901,1756239086351,5000.0,0.0002626,2]
[381502902,1756239103015,5000.0,0.0002626,2]
[381502903,1756239103826,-234.67952863,0.00027,3]
[381502904,1756239109268,-168.71882018,0.00027,3]
[381502905,1756239110810,-13.75637904,0.00027,3]
[381502906,1756239110834,-138.24362096,0.00027,7]
[381502907,1756239114145,-199.0,0.00027,7]
[381502908,1756239117339,-79.91110689,0.00027,7]
[381502909,1756239118632,5000.0,0.0002626,2]
[381502910,1756239134463,5000.0,0.0002626,2]
[381502911,1756239144444,565.37590177,0.000199,2]
[381502912,1756239144514,565.3759017,0.00021627,2]
[381502913,1756239144796,565.3759017,0.00023353,2]
[381502914,1756239144940,565.3759017,0.0002508,2]
[381502915,1756239145150,-167.07601088,0.00026489,2]
[381502916,1756239148220,-165.71,0.00026489,2]
[381502917,1756239151006,5000.0,0.0002626,2]
[381502918,1756239154197,-259.21398912,0.00026489,2]
[381502919,1756239154226,-39.25876273,0.00026806,6]
[381502920,1756239157343,-151.71094747,0.00026806,6]
[381502921,1756239159602,-160.0,0.00026489,2]
[381502922,1756239159629,-23.23645434,0.00026806,6]
[381502923,1756239161190,-183.23645434,0.00026806,6]
[381502924,1756239164429,-167.93328282,0.00026806,6]
[381502925,1756239166952,5000.0,0.0002626,2]
[381502926,1756239183268,5000.0,0.0002626,2]
[381502927,1756239198593,5000.0,0.0002626,2]
[381502928,1756239213918,5000.0,0.0002626,2]
[381502929,1756239230451,5000.0,0.0002626,2]
[381502930,1756239246784,3807.53356453,0.0002626,2]
[381502931,1756239343857,481.30609,0.000199,2]
[381502932,1756239343969,481.30608972,0.00021627,2]
[381502933,1756239344163,481.30608972,0.00023353,2]
[381502934,1756239344282,481.30608972,0.0002508,2]
[381502935,1756239345158,-194.76254165,0.00026489,2]
[381502936,1756239345184,-0.70177337,0.00026806,6]
[381502937,1756239349592,-151.25984565,0.00026489,2]
[381502938,1756239351000,-193.76885521,0.00026489,2]
[381502939,1756239351028,-37.6768872,0.00026806,6]
[381502940,1756239352514,-242.76137208,0.00026806,6]
[381502941,1756239354967,-178.93960609,0.00026489,2]
[381502942,1756239354993,-200.16605707,0.00026806,6]
[381502943,1756239356944,-170.76073732,0.00026489,2]
[381502944,1756239537118,586.79477763,0.000199,2]
[381502945,1756239537194,586.79477738,0.00021627,2]
[381502946,1756239537240,586.79477738,0.00023353,2]
[381502947,1756239537278,586.79477738,0.0002508,2]
[381502948,1756239548210,196.97645338,0.00025017,2]
[381502950,1756239690475,-158.5635418,0.00026489,2]
[381502951,1756239690504,-355.4364582,0.00026806,6]
[381502952,1756239693489,-151.0,0.00026489,2]
[381502953,1756239693518,-1.0,0.00026806,6]
[381502954,1756239713860,496.67425863,0.000199,2]
[381502955,1756239714043,496.67425845,0.00021627,2]
[381502956,1756239714093,496.67425845,0.00023353,2]
[381502957,1756239714203,496.67425845,0.0002508,2]
[381502958,1756239735567,-167.58387999,0.00026806,6]
[381502959,1756239738341,-264.52143403,0.00026806,6]
[381502960,1756239739449,-64.56894443,0.00026806,6]
[381502961,1756239739472,-158.11788969,0.00026851,2]
[381502962,1756239741460,-141.88211031,0.00026851,2]
[381502963,1756239741481,-66.75890665,0.00026852,2]
[381502964,1756239743634,-186.5637155,0.00026852,2]
[381502965,1756239746085,-188.27676641,0.00026852,2]
[381502966,1756239749419,-366.1065889,0.00026852,2]
[381502967,1756239752839,-350.2375501,0.00026852,2]
[381502968,1756239755942,-300.0,0.00026852,2]
[381502969,1756239758634,-151.0,0.00026852,2]
[381502970,1756239760211,-300.0,0.00026852,2]
[381502971,1756239763368,-404.64186518,0.00026852,2]
[381502972,1756239768410,-165.86420085,0.00026852,2]
[381502973,1756239771911,-199.0,0.00026852,2]
[381502974,1756239774635,-243.17039191,0.00026852,2]
[381502975,1756239776903,-242.91060126,0.00026852,2]
[381502976,1756239780517,-199.0,0.00026852,2]
[381502977,1756239784275,-199.0,0.00026851,2]
[381502978,1756239786362,-101.0,0.00026851,2]
[381502979,1756239786384,-119.16743599,0.00026852,2]
[381502980,1756239789488,-190.92246214,0.00026852,2]
[381502981,1756239791571,-183.47,0.00026852,2]
[381502982,1756239794105,-254.70720371,0.00026852,2]
[381502983,1756239797171,-207.07753786,0.00026852,2]
[381502984,1756239799298,-152.0,0.00026852,2]
[381502985,1756239801106,-168.29647525,0.00026852,2]
[381502986,1756239803196,-300.0,0.00026852,2]
[381502987,1756239807517,-168.94994048,0.00026852,2]
[381502988,1756239809712,-468.37474262,0.00026852,2]
[381502989,1756239811789,-152.0,0.00026852,2]
[381502990,1756239813807,-192.0,0.00026852,2]
[381502991,1756239816367,-216.15220916,0.00026852,2]
[381502992,1756239818381,-188.0,0.00026852,2]
[381502993,1756239820176,-199.0,0.00026852,2]
[381502994,1756239821887,-269.0988277,0.00026852,2]
[381502995,1756239823442,-155.84,0.00026852,2]
[381502996,1756239828702,-225.71780587,0.00026852,2]
[381502997,1756239831314,-199.0,0.00026852,2]
[381502998,1756239833969,-317.28364551,0.00026852,2]
[381502999,1756239835939,-460.0,0.00026852,2]
[381503000,1756239837373,-215.39313076,0.00026852,2]
[381503001,1756239841155,-165.74,0.00026852,2]
[381503002,1756239843134,-199.0,0.00026852,2]
[381503003,1756239845138,-156.96,0.00026852,2]
[381503004,1756239849510,-176.80742441,0.00026852,2]
[381503005,1756239853082,-310.90255367,0.00026852,2]
[381503006,1756239859389,-298.63649048,0.00026852,2]
[381503007,1756239862697,-277.17011412,0.00026852,2]
[381503008,1756239865165,-48.80141351,0.00026852,2]
[381503009,1756239865187,-324.5473304,0.00026938,2]
[381503010,1756239867801,-290.73811895,0.00026938,2]
[381503011,1756239872452,-304.79226468,0.00026938,2]
[381503012,1756239875066,-152.0,0.00026938,2]
[381503013,1756239876112,-151.16803761,0.00026938,2]
[381503014,1756239878653,-155.84,0.00026857,2]
[381503015,1756239880609,-190.644576,0.00026857,2]
[381503016,1756239882083,-160.75679804,0.00026857,2]
[381503017,1756239883593,-173.48406566,0.00026857,2]
[381503018,1756239887239,-156.96,0.00026857,2]
[381503019,1756239892141,-204.57689282,0.00026857,2]
[381503020,1756239893899,893.5712077,0.00026232,2]
[381503021,1756239894872,-251.02283608,0.00026857,2]
[381503022,1756239897462,-152.0,0.00026857,2]
[381503023,1756239900484,-215.47372884,0.00026857,2]
[381503024,1756239900588,413.89521552,0.000199,2]